fUSD/lending_fUSD_20250514
["ID","MTS","AMOUNT","RATE_DAILY","PERIOD"]
[361090051,1747247437523,-400.0,0.00011223,2]
[361090052,1747247437532,-830.91,0.00011223,2]
[361090053,1747247437541,-400.0,0.00011223,2]
[361090054,1747247437551,-400.0,0.00011223,2]
[361090055,1747247437560,-400.0,0.00011223,2]
[361090056,1747247437569,-400.0,0.00011223,2]
[361090057,1747247437577,-400.0,0.00011223,2]
[361090058,1747247437585,-7324.96,0.00011223,2]
[361090059,1747247437593,-400.0,0.00011223,2]
[361090060,1747247437602,-400.0,0.00011223,2]
[361090061,1747247437610,-429.22,0.00011223,2]
[361090062,1747247437617,-400.0,0.00011223,2]
[361090063,1747247437625,-400.0,0.00011223,2]
[361090064,1747247437633,-400.0,0.00011223,2]
[361090065,1747247437641,-400.0,0.00011223,2]
[361090066,1747247437650,-404.84989848,0.00011223,2]
[361090067,1747247437659,-400.0,0.00011223,2]
[361090068,1747247437667,-445.6,0.00011223,2]
[361090069,1747247437676,-400.0,0.00011223,2]
[361090070,1747247437687,-1984.32,0.00011223,2]
[361090071,1747247437696,-902.04,0.00011223,2]
[361090072,1747247437705,-400.0,0.00011223,2]
[361090073,1747247437715,-400.0,0.00011223,2]
[361090074,1747247437724,-4307.99,0.00011223,2]
[361090075,1747247437733,-400.0,0.00011223,2]
[361090076,1747247437743,-400.0,0.00011223,2]
[361090077,1747247437752,-535.98,0.00011223,2]
[361090078,1747247437761,-400.0,0.00011223,2]
[361090079,1747247437771,-439.02,0.00011223,2]
[361090080,1747247437780,-400.0,0.00011223,2]
[361090081,1747247437790,-400.0,0.00011223,2]
[361090082,1747247437800,-2806.18,0.00011223,2]
[361090083,1747247437810,-650.63,0.00011223,2]
[361090084,1747247437821,-400.0,0.00011223,2]
[361090085,1747247437831,-400.0,0.00011223,2]
[361090086,1747247437841,-400.0,0.00011223,2]
[361090088,1747247437852,-400.0,0.00011223,2]
[361090090,1747247437862,-400.0,0.00011223,2]
[361090092,1747247437872,-1854.38,0.00011223,2]
[361090094,1747247437882,-400.0,0.00011223,2]
[361090096,1747247437892,-400.0,0.00011223,2]
[361090098,1747247437903,-400.0,0.00011223,2]
[361090100,1747247437914,-579.04,0.00011223,2]
[361090101,1747247437926,-449.89,0.00011223,2]
[361090102,1747247437935,-2566.66,0.00011223,2]
[361090103,1747247437945,-347.1974305,0.00011223,2]
[361090104,1747247437953,-400.0,0.00011223,2]
[361090105,1747247437963,-400.0,0.00011223,2]
[361090106,1747247437972,-400.0,0.00011223,2]
[361090107,1747247437981,-400.0,0.00011223,2]
[361090108,1747247437991,-400.0,0.00011223,2]
[361090109,1747247438001,-285.42156025,0.00011223,2]
[361090110,1747247438012,-462.1,0.00011223,2]
[361090111,1747247438022,-400.0,0.00011223,2]
[361090112,1747247438031,-400.0,0.00011223,2]
[361090113,1747247438040,-400.0,0.00011223,2]
[361090114,1747247438051,-400.0,0.00011223,2]
[361090115,1747247438062,-445.4,0.00011223,2]
[361090116,1747247438071,-428.72,0.00011223,2]
[361090117,1747247438080,-400.0,0.00011223,2]
[361090118,1747247438089,-400.0,0.00011223,2]
[361090119,1747247438099,-400.0,0.00011223,2]
[361090120,1747247438108,-791.65,0.00011223,2]
[361090121,1747247438117,-764.07,0.00011223,2]
[361090122,1747247438126,-400.0,0.00011223,2]
[361090123,1747247438135,-400.0,0.00011223,2]
[361090124,1747247438144,-6273.29,0.00011223,2]
[361090125,1747247438154,-400.0,0.00011223,2]
[361090126,1747247438165,-553.11,0.00011223,2]
[361090127,1747247438174,-500.0,0.00011223,2]
[361090128,1747247438184,-400.0,0.00011223,2]
[361090129,1747247438193,-450.0,0.00011223,2]
[361090130,1747247438203,-400.0,0.00011223,2]
[361090131,1747247438213,-400.0,0.00011223,2]
[361090132,1747247438224,-5624.23,0.00011223,2]
[361090133,1747247438235,-403.27720785,0.00011223,2]
[361090134,1747247438246,-994.62,0.00011223,2]
[361090135,1747247438259,-400.0,0.00011223,2]
[361090136,1747247438268,-400.0,0.00011223,2]
[361090137,1747247438277,-400.0,0.00011223,2]
[361090138,1747247438286,-616.23,0.00011223,2]
[361090140,1747247438295,-400.0,0.00011223,2]
[361090142,1747247438305,-400.0,0.00011223,2]
[361090145,1747247438316,-15448.33,0.00011223,2]
[361090147,1747247438327,-400.0,0.00011223,2]
[361090148,1747247438337,-400.0,0.00011223,2]
[361090150,1747247438346,-400.0,0.00011223,2]
[361090152,1747247438356,-400.0,0.00011223,2]
[361090154,1747247438365,-629.93,0.00011223,2]
[361090155,1747247438375,-400.0,0.00011223,2]
[361090156,1747247438384,-400.0,0.00011223,2]
[361090157,1747247438394,-400.0,0.00011223,2]
[361090158,1747247438403,-400.0,0.00011223,2]
[361090159,1747247438413,-402.49097462,0.00011223,2]
[361090160,1747247438423,-538.27,0.00011223,2]
[361090161,1747247438436,-400.0,0.00011223,2]
[361090162,1747247438446,-400.0,0.00011223,2]
[361090163,1747247438455,-400.0,0.00011223,2]
[361090164,1747247438465,-400.0,0.00011223,2]
[361090165,1747247438474,-1099.19,0.00011223,2]
[361090166,1747247438483,-400.0,0.00011223,2]
[361090167,1747247438493,-400.0,0.00011223,2]
[361090168,1747247438503,-400.0,0.00011223,2]
[361090169,1747247438515,-3081.06,0.00011223,2]
[361090170,1747247438524,-400.0,0.00011223,2]
[361090171,1747247438534,-400.0,0.00011223,2]
[361090172,1747247438543,-400.0,0.00011223,2]
[361090173,1747247438553,-400.0,0.00011223,2]
[361090174,1747247438564,-400.0,0.00011223,2]
[361090175,1747247438574,-400.0,0.00011223,2]
[361090176,1747247438584,-400.0,0.00011223,2]
[361090177,1747247438594,-400.0,0.00011223,2]
[361090178,1747247438604,-16780.39,0.00011223,2]
[361090179,1747247438614,-1459.41,0.00011223,2]
[361090180,1747247438625,-400.0,0.00011223,2]
[361090181,1747247438635,-400.0,0.00011223,2]
[361090182,1747247438645,-400.0,0.00011223,2]
[361090183,1747247438655,-400.0,0.00011223,2]
[361090184,1747247438665,-400.0,0.00011223,2]
[361090185,1747247438675,-400.0,0.00011223,2]
[361090186,1747247438686,-400.0,0.00011223,2]
[361090187,1747247438695,-417.23,0.00011223,2]
[361090188,1747247438705,-1000.0,0.00011223,2]
[361090189,1747247438715,-928.37,0.00011223,2]
[361090190,1747247438725,-400.0,0.00011223,2]
[361090191,1747247438734,-400.0,0.00011223,2]
[361090192,1747247438744,-676.0,0.00011223,2]
[361090193,1747247438755,-400.0,0.00011223,2]
[361090194,1747247438765,-400.0,0.00011223,2]
[361090195,1747247438774,-400.0,0.00011223,2]
[361090196,1747247438784,-400.0,0.00011223,2]
[361090197,1747247438794,-435.73,0.00011223,2]
[361090198,1747247438804,-400.0,0.00011223,2]
[361090199,1747247438814,-300.0,0.00011223,2]
[361090200,1747247438823,-400.0,0.00011223,2]
[361090201,1747247438833,-400.0,0.00011223,2]
[361090202,1747247438843,-524.23121312,0.00011223,2]
[361090203,1747247438853,-749.26,0.00011223,2]
[361090204,1747247438863,-400.0,0.00011223,2]
[361090205,1747247438872,-400.0,0.00011223,2]
[361090206,1747247438882,-400.0,0.00011223,2]
[361090207,1747247438891,-400.0,0.00011223,2]
[361090208,1747247438902,-4010.16,0.00011223,2]
[361090209,1747247438911,-400.0,0.00011223,2]
[361090210,1747247438921,-400.0,0.00011223,2]
[361090211,1747247438931,-400.0,0.00011223,2]
[361090212,1747247438940,-400.0,0.00011223,2]
[361090213,1747247438950,-400.0,0.00011223,2]
[361090214,1747247438960,-400.0,0.00011223,2]
[361090215,1747247438969,-400.0,0.00011223,2]
[361090216,1747247438980,-400.0,0.00011223,2]
[361090217,1747247438990,-400.0,0.00011223,2]
[361090218,1747247439000,-400.0,0.00011223,2]
[361090219,1747247439010,-400.0,0.00011223,2]
[361090220,1747247439020,-400.0,0.00011223,2]
[361090221,1747247439031,-400.0,0.00011223,2]
[361090222,1747247439040,-550.8,0.00011223,2]
[361090223,1747247439050,-400.0,0.00011224,2]
[361090224,1747247439060,-400.0,0.00011224,2]
[361090225,1747247439070,-400.0,0.00011224,2]
[361090226,1747247439080,-555.59,0.00011224,2]
[361090227,1747247439090,-400.0,0.00011224,2]
[361090228,1747247439099,-400.0,0.00011224,2]
[361090229,1747247439109,-400.0,0.00011224,2]
[361090230,1747247439118,-976.68395612,0.00011224,2]
[361090231,1747247439128,-812.43,0.00011224,2]
[361090232,1747247439137,-3016.06,0.00011224,2]
[361090233,1747247439147,-400.0,0.00011224,2]
[361090234,1747247439157,-780.92,0.00011224,2]
[361090235,1747247439169,-441.17,0.00011224,2]
[361090236,1747247439179,-400.0,0.00011224,2]
[361090237,1747247439190,-839.81,0.00011224,2]
[361090238,1747247439199,-400.0,0.00011224,2]
[361090239,1747247439210,-436.03,0.00011224,2]
[361090240,1747247439220,-400.0,0.00011224,2]
[361090241,1747247439230,-400.0,0.00011224,2]
[361090242,1747247439242,-528.29744893,0.00011224,2]
[361090243,1747247439253,-1756.9,0.00011224,2]
[361090244,1747247439263,-400.0,0.00011224,2]
[361090245,1747247439274,-602.59,0.00011224,2]
[361090246,1747247439283,-400.0,0.00011224,2]
[361090247,1747247439292,-400.0,0.00011224,2]
[361090248,1747247439302,-400.0,0.00011224,2]
[361090249,1747247439313,-400.0,0.00011224,2]
[361090250,1747247439323,-400.0,0.00011224,2]
[361090251,1747247439333,-483.56,0.00011224,2]
[361090252,1747247439343,-503.22,0.00011224,2]
[361090253,1747247439353,-400.0,0.00011224,2]
[361090254,1747247439364,-400.0,0.00011224,2]
[361090255,1747247439375,-659.26,0.00011224,2]
[361090256,1747247439385,-522.89,0.00011224,2]
[361090257,1747247439396,-948.15,0.00011224,2]
[361090258,1747247439406,-400.0,0.00011224,2]
[361090259,1747247439416,-496.54,0.00011224,2]
[361090260,1747247439428,-400.0,0.00011224,2]
[361090261,1747247439438,-1044.32,0.00011224,2]
[361090262,1747247439448,-566.56,0.00011224,2]
[361090263,1747247439458,-457.03,0.00011224,2]
[361090264,1747247439468,-400.0,0.00011224,2]
[361090265,1747247439478,-423.93,0.00011224,2]
[361090266,1747247439488,-400.0,0.00011224,2]
[361090267,1747247439498,-400.0,0.00011224,2]
[361090268,1747247439508,-400.0,0.00011224,2]
[361090269,1747247439517,-776.47,0.00011224,2]
[361090270,1747247439527,-1021.54,0.00011224,2]
[361090271,1747247439537,-512.74,0.00011224,2]
[361090272,1747247439546,-400.0,0.00011224,2]
[361090273,1747247439557,-400.0,0.00011224,2]
[361090274,1747247439567,-400.0,0.00011224,2]
[361090275,1747247439577,-151.0,0.00011232,2]
[361090276,1747247439587,-151.0,0.00011232,2]
[361090277,1747247439597,-400.0,0.00011232,2]
[361090278,1747247439607,-400.0,0.00011232,2]
[361090279,1747247439618,-400.0,0.00011232,2]
[361090280,1747247439628,-400.0,0.00011232,2]
[361090281,1747247439638,-151.0,0.00011232,2]
[361090282,1747247439648,-151.0,0.00011232,2]
[361090283,1747247439659,-151.0,0.00011232,2]
[361090284,1747247439669,-151.0,0.00011232,2]
[361090285,1747247439680,-151.0,0.00011232,2]
[361090286,1747247439690,-151.0,0.00011232,2]
[361090287,1747247439700,-151.0,0.00011232,2]
[361090288,1747247439710,-273.093843,0.00011232,2]
[361090289,1747247439719,-273.093843,0.00011232,2]
[361090290,1747247439729,-151.0,0.00011232,2]
[361090291,1747247439739,-151.0,0.00011232,2]
[361090292,1747247439748,-151.457001,0.00011232,2]
[361090293,1747247439758,-151.0,0.00011232,2]
[361090294,1747247439767,-4000.0,0.00011233,2]
[361090295,1747247439777,-500.0,0.00011236,2]
[361090296,1747247439787,-500.0,0.00011236,2]
[361090297,1747247439797,-150.0,0.00011237,2]
[361090298,1747247439808,-150.0,0.00011237,2]
[361090299,1747247439818,-8111.0022721,0.00011237,2]
[361090300,1747247439828,-7602.25871543,0.00011237,2]
[361090301,1747247439838,-150.0,0.00011237,2]
[361090302,1747247439847,-5944.95112535,0.00011237,2]
[361090304,1747247439857,-151.0,0.00011237,2]
[361090306,1747247439867,-151.0,0.00011237,2]
[361090313,1747247439945,-290.215807,0.00011237,2]
[361090315,1747247439954,-537.17666,0.00011237,2]
[361090316,1747247439963,-537.17666,0.00011237,2]
[361090317,1747247439972,-151.0,0.00011237,2]
[361090318,1747247439981,-792.056955,0.00011237,2]
[361090319,1747247439991,-792.056955,0.00011237,2]
[361090320,1747247440000,-151.0,0.00011237,2]
[361090321,1747247440010,-1443.499065,0.00011237,2]
[361090322,1747247440019,-1443.499065,0.00011237,2]
[361090323,1747247440028,-151.0,0.00011237,2]
[361090324,1747247440038,-151.0,0.00011237,2]
[361090325,1747247440048,-151.0,0.00011237,2]
[361090326,1747247440057,-16113.9338824,0.00011245,2]
[361090327,1747247440068,-500.0,0.00011265,2]
[361090328,1747247440077,-200.0,0.00011265,2]
[361090329,1747247440086,-500.0,0.00011273,2]
[361090330,1747247440096,-151.0,0.00011336,2]
[361090331,1747247440105,-344.162986,0.00011336,2]
[361090332,1747247440114,-344.162986,0.00011336,2]
[361090333,1747247440123,-151.0,0.00011336,2]
[361090334,1747247440132,-151.0,0.00011336,2]
[361090335,1747247440142,-3529.568395,0.00011336,2]
[361090336,1747247440151,-3529.568395,0.00011336,2]
[361090337,1747247440163,-151.0,0.00011336,2]
[361090338,1747247440174,-1005.86383445,0.00011349,2]
[361090339,1747247440184,-16113.9338824,0.00011367,2]
[361090340,1747247440194,-151.0,0.00011385,2]
[361090341,1747247440207,-151.0,0.00011385,2]
[361090342,1747247440220,-151.0,0.00011385,2]
[361090343,1747247440233,-550.32664484,0.00011397,2]
[361090344,1747247440247,-151.0,0.000114,2]
[361090345,1747247440256,-274.193603,0.000114,2]
[361090346,1747247440265,-151.0,0.000114,2]
[361090347,1747247440274,-274.193603,0.000114,2]
[361090348,1747247440284,-151.0,0.000114,2]
[361090349,1747247440293,-151.0,0.000114,2]
[361090350,1747247440302,-158.650024,0.000114,2]
[361090351,1747247440311,-158.650024,0.000114,2]
[361090352,1747247440321,-326.62573,0.000114,2]
[361090353,1747247440330,-326.62573,0.000114,2]
[361090354,1747247440339,-151.0,0.000114,2]
[361090355,1747247440347,-151.0,0.000114,2]
[361090356,1747247440356,-151.0,0.000114,2]
[361090357,1747247440365,-167.329353,0.000114,2]
[361090358,1747247440374,-167.329353,0.000114,2]
[361090359,1747247440383,-151.0,0.000114,2]
[361090360,1747247440392,-151.0,0.000114,2]
[361090361,1747247440400,-241.861429,0.00011405,2]
[361090362,1747247440409,-241.861429,0.00011405,2]
[361090363,1747247440419,-1342.1379596,0.00011421,2]
[361090364,1747247440428,-553.0,0.00011433,2]
[361090365,1747247440437,-1251.0,0.00011433,2]
[361090366,1747247440447,-919.0,0.00011433,2]
[361090367,1747247440456,-1457.0,0.00011433,2]
[361090368,1747247440465,-584.0,0.00011433,2]
[361090369,1747247440475,-1147.0,0.00011433,2]
[361090370,1747247440484,-5940.0,0.00011433,2]
[361090371,1747247440493,-1305.0,0.00011433,2]
[361090372,1747247440503,-154.0,0.00011433,2]
[361090373,1747247440513,-931.0,0.00011433,2]
[361090375,1747247440522,-4032.0,0.00011433,2]
[361090377,1747247440531,-400.0,0.00011471,2]
[361090379,1747247440540,-536.56671255,0.00011471,2]
[361090381,1747247440550,-500.0,0.00011471,2]
[361090383,1747247440560,-500.0,0.00011471,2]
[361090385,1747247440569,-500.0,0.00011471,2]
[361090387,1747247440578,-301.28003084,0.00011471,2]
[361090389,1747247440588,-791.65,0.00011471,2]
[361090390,1747247440597,-151.0,0.00011472,2]
[361090391,1747247440607,-241.861429,0.00011472,2]
[361090392,1747247440616,-241.861429,0.00011472,2]
[361090393,1747247440625,-151.0,0.00011472,2]
[361090394,1747247440635,-274.193603,0.00011472,2]
[361090395,1747247440644,-151.0,0.00011472,2]
[361090396,1747247440654,-274.193603,0.00011472,2]
[361090397,1747247440664,-151.0,0.00011472,2]
[361090398,1747247440673,-151.0,0.00011472,2]
[361090399,1747247440684,-158.650024,0.00011472,2]
[361090400,1747247440693,-158.650024,0.00011472,2]
[361090401,1747247440702,-326.62573,0.00011472,2]
[361090402,1747247440712,-326.62573,0.00011472,2]
[361090403,1747247440721,-151.0,0.00011472,2]
[361090404,1747247440731,-151.0,0.00011472,2]
[361090405,1747247440740,-151.0,0.00011472,2]
[361090406,1747247440750,-215.225564,0.00011472,2]
[361090407,1747247440759,-151.0,0.00011472,2]
[361090408,1747247440769,-167.329353,0.00011472,2]
[361090409,1747247440778,-167.329353,0.00011472,2]
[361090410,1747247440788,-151.0,0.00011472,2]
[361090411,1747247440797,-151.0,0.00011472,2]
[361090412,1747247440806,-900.40931298,0.00011473,2]
[361090413,1747247440815,-440023.82755108,0.00011473,2]
[361090414,1747247441214,-1069.85932377,0.00011473,2]
[361090415,1747247441248,-1364.56664616,0.00011473,2]
[361090416,1747247441259,-269.652,0.00011473,2]
[361090417,1747247441284,-11760.26009861,0.00011473,2]
[361090418,1747247441295,-535.3884398,0.00011473,2]
[361090419,1747247441318,-573.4545931,0.00011473,2]
[361090420,1747247442555,-550.72,0.00011222,2]
[361090421,1747247442566,-400.0,0.00011223,2]
[361090422,1747247442576,-400.0,0.00011223,2]
[361090423,1747247442585,-400.0,0.00011223,2]
[361090424,1747247442595,-6822.0,0.00011433,2]
[361090425,1747247442604,-53355.30654453,0.00011473,2]
[361090426,1747247442616,-22176.97727895,0.00011473,2]
[361090427,1747247442627,-24085.36414106,0.00011473,2]
[361090428,1747247442642,-509.7,0.00011473,2]
[361090429,1747247442661,-4817.8338,0.00011473,2]
[361090438,1747247443011,-400.0,0.00011223,2]
[361090439,1747247443021,-636.51836928,0.00011373,2]
[361090440,1747247443031,-4070.98163072,0.00011473,2]
[361090442,1747247443058,-260.59,0.00011473,2]
[361090444,1747247443078,-377.57221102,0.00011473,2]
[361090446,1747247443604,-343.34299998,0.00011222,2]
[361090449,1747247443620,-56.65700002,0.00011222,2]
[361090451,1747247443629,-362.68300048,0.00011473,2]
[361090481,1747247445974,-502.71,0.00011222,2]
[361090482,1747247445984,-400.0,0.00011222,2]
[361090483,1747247445994,-1252.70000007,0.00011222,2]
[361090484,1747247446087,-534.07999993,0.00011222,2]
[361090485,1747247446097,-4826.78,0.00011222,2]
[361090486,1747247446107,-400.0,0.00011223,2]
[361090487,1747247446116,-109.23410581,0.00011386,2]
[361090488,1747247446127,-527.28426345,0.00011386,2]
[361090489,1747247446136,-837.0,0.00011433,2]
[361090490,1747247446146,-499.83993688,0.00011473,2]
[361090491,1747247446252,-3210.55271136,0.00011473,2]
[361090493,1747247734617,150.0,0.00010435,7]
[361090494,1747247877324,526.27,8.485e-05,2]
[361090503,1747248520869,150.0,0.000135,5]
[361090516,1747248632084,-299.41,0.00010087,2]
[361090517,1747248632094,-50.59,0.00010098,2]
[361090518,1747248632106,-149.41,0.00010098,2]
[361090519,1747248632115,-150.72,0.0001011,2]
[361090520,1747248632124,-448.31104968,0.00010147,2]
[361090521,1747248632144,-551.68895032,0.00010147,2]
[361090522,1747248632153,-244.61,0.00010264,2]
[361090523,1747248632163,-200.0,0.0001031,2]
[361090524,1747248632172,-200.0,0.00010403,2]
[361090525,1747248632182,-198.1,0.00010448,2]
[361090526,1747248632191,-189.26964301,0.00010599,2]
[361090527,1747248632200,-176.42219734,0.00010699,2]
[361090528,1747248632210,-500.0,0.00010699,2]
[361090529,1747248632219,-1200.0,0.00010699,2]
[361090530,1747248632228,-300.0,0.00010699,2]
[361090531,1747248632237,-8000.0,0.000107,3]
[361090532,1747248632247,-526.27,0.00010748,2]
[361090533,1747248632256,-16100.0,0.000108,3]
[361090534,1747248632265,-207.4,0.00010892,2]
[361090535,1747248632275,-24100.0,0.000109,3]
[361090536,1747248632284,-864.05076374,0.0001096,2]
[361090537,1747248632294,-299.99,0.00011047,2]
[361090538,1747248632303,-150.99,0.00011047,2]
[361090539,1747248632313,-200.0,0.00011096,2]
[361090540,1747248632323,-10189.04765739,0.00011099,2]
[361090541,1747248632332,-1454.697,0.00011099,2]
[361090542,1747248632341,-240.53358208,0.0001112,2]
[361090543,1747248632350,-203.24411715,0.0001112,2]
[361090544,1747248632359,-214.50155837,0.0001112,2]
[361090545,1747248632368,-163.29322358,0.0001112,2]
[361090546,1747248632377,-181.13937632,0.0001112,2]
[361090547,1747248632386,-537.82634443,0.00011121,2]
[361090548,1747248632395,-14047.72666213,0.00011121,2]
[361090549,1747248632404,-225.0,0.00011121,2]
[361090550,1747248632413,-8982.9886,0.00011122,2]
[361090551,1747248632422,-103816.3422,0.00011122,2]
[361090552,1747248632431,-10189.0476573,0.00011139,2]
[361090553,1747248632440,-151.0,0.00011215,2]
[361090554,1747248632449,-151.0,0.00011215,2]
[361090555,1747248632458,-151.0,0.00011215,2]
[361090556,1747248632467,-1439.04716418,0.00011215,2]
[361090558,1747248632476,-668.65185757,0.00011215,2]
[361090560,1747248632486,-400.0,0.00011219,2]
[361090562,1747248632495,-455.39,0.00011219,2]
[361090564,1747248632504,-318.9968931,0.00011219,2]
[361090566,1747248632514,-400.0,0.00011219,2]
[361090568,1747248632523,-462.06355468,0.00011219,2]
[361090570,1747248632532,-400.0,0.00011219,2]
[361090572,1747248632541,-400.0,0.00011219,2]
[361090574,1747248632550,-460.73,0.00011219,2]
[361090576,1747248632559,-400.0,0.00011219,2]
[361090578,1747248632568,-544.73934963,0.00011219,2]
[361090581,1747248632578,-400.0,0.00011219,2]
[361090584,1747248632588,-400.0,0.00011219,2]
[361090587,1747248632597,-400.0,0.00011219,2]
[361090591,1747248632606,-500.0,0.00011219,2]
[361090593,1747248632615,-872.78,0.00011219,2]
[361090596,1747248632624,-4569.51,0.00011219,2]
[361090598,1747248632633,-400.0,0.00011219,2]
[361090600,1747248632642,-450.66865977,0.00011219,2]
[361090602,1747248632651,-400.0,0.00011219,2]
[361090605,1747248632660,-400.0,0.00011219,2]
[361090607,1747248632669,-400.0,0.00011219,2]
[361090609,1747248632679,-400.0,0.00011219,2]
[361090610,1747248632688,-450.0,0.00011219,2]
[361090612,1747248632699,-603.73,0.00011219,2]
[361090614,1747248632711,-400.0,0.00011219,2]
[361090616,1747248632720,-613.82,0.00011219,2]
[361090618,1747248632729,-400.0,0.00011219,2]
[361090620,1747248632740,-1610.02,0.00011219,2]
[361090622,1747248632748,-400.0,0.00011219,2]
[361090624,1747248632757,-521.45,0.00011219,2]
[361090626,1747248632767,-400.0,0.00011219,2]
[361090628,1747248632777,-631.13,0.00011219,2]
[361090630,1747248632788,-503.03530276,0.00011219,2]
[361090656,1747248633024,-400.0,0.00011219,2]
[361090658,1747248633034,-400.0,0.00011219,2]
[361090660,1747248633044,-705.08,0.00011219,2]
[361090662,1747248633054,-536.38,0.00011219,2]
[361090664,1747248633063,-400.0,0.00011219,2]
[361090666,1747248633073,-1187.84,0.00011219,2]
[361090668,1747248633082,-400.0,0.00011219,2]
[361090670,1747248633092,-478.17,0.00011219,2]
[361090672,1747248633102,-195.4995,0.00011219,2]
[361090674,1747248633111,-1038.58,0.00011219,2]
[361090676,1747248633121,-400.0,0.00011219,2]
[361090678,1747248633130,-736.13,0.00011219,2]
[361090680,1747248633140,-1160.286736,0.00011219,2]
[361090682,1747248633150,-4672.36,0.00011219,2]
[361090685,1747248633160,-400.0,0.0001122,2]
[361090687,1747248633169,-400.0,0.0001122,2]
[361090689,1747248633179,-400.0,0.0001122,2]
[361090691,1747248633189,-414.17183093,0.0001122,2]
[361090693,1747248633199,-400.0,0.0001122,2]
[361090695,1747248633208,-400.0,0.0001122,2]
[361090697,1747248633218,-400.0,0.0001122,2]
[361090699,1747248633227,-465.35533004,0.0001122,2]
[361090701,1747248633237,-402.12700308,0.0001122,2]
[361090703,1747248633247,-400.0,0.0001122,2]
[361090704,1747248633256,-400.0,0.0001122,2]
[361090706,1747248633266,-511.32347803,0.0001122,2]
[361090709,1747248633277,-526.121708,0.0001122,2]
[361090711,1747248633286,-400.0,0.0001122,2]
[361090713,1747248633296,-464.35767529,0.0001122,2]
[361090715,1747248633306,-400.0,0.0001122,2]
[361090717,1747248633315,-400.0,0.0001122,2]
[361090719,1747248633325,-400.0,0.0001122,2]
[361090721,1747248633334,-400.0,0.0001122,2]
[361090723,1747248633343,-174.264359,0.0001122,2]
[361090725,1747248633352,-158.843993,0.0001122,2]
[361090727,1747248633361,-3247.850427,0.0001122,2]
[361090729,1747248633370,-2748.303333,0.0001122,2]
[361090730,1747248633380,-400.0,0.0001122,2]
[361090732,1747248633389,-400.0,0.0001122,2]
[361090734,1747248633399,-400.0,0.0001122,2]
[361090735,1747248633409,-400.0,0.0001122,2]
[361090736,1747248633418,-250.0,0.0001122,2]
[361090737,1747248633427,-413.79,0.0001122,2]
[361090738,1747248633436,-400.0,0.0001122,2]
[361090739,1747248633446,-400.0,0.0001122,2]
[361090740,1747248633455,-400.0,0.0001122,2]
[361090741,1747248633464,-189.94977132,0.0001122,2]
[361090742,1747248633473,-476.52,0.0001122,2]
[361090743,1747248633483,-400.0,0.0001122,2]
[361090744,1747248633493,-531.02,0.0001122,2]
[361090745,1747248633503,-400.0,0.0001122,2]
[361090746,1747248633513,-435.33,0.0001122,2]
[361090747,1747248633522,-400.0,0.0001122,2]
[361090748,1747248633532,-400.0,0.0001122,2]
[361090749,1747248633542,-400.0,0.0001122,2]
[361090750,1747248633552,-400.0,0.0001122,2]